fUSD/lending_fUSD_20240921
["ID","MTS","AMOUNT","RATE_DAILY","PERIOD"]
[338742422,1726905069718,-500.0,0.00012999,2]
[338742423,1726905069732,-500.0,0.00012999,2]
[338742424,1726905069745,-500.0,0.00012999,2]
[338742425,1726905069759,-500.0,0.00012999,2]
[338742426,1726905070399,-268.32,0.00012999,2]
[338742427,1726905070419,-500.0,0.00012999,2]
[338742428,1726905070444,-500.0,0.00012999,2]
[338742429,1726905070470,-500.0,0.00012999,2]
[338742430,1726905070487,-500.0,0.00012999,2]
[338742431,1726905070497,-500.0,0.00012999,2]
[338742432,1726905070507,-500.0,0.00012999,2]
[338742433,1726905070516,-500.0,0.00012999,2]
[338742434,1726905070526,-500.0,0.00012999,2]
[338742435,1726905070536,-500.0,0.00012999,2]
[338742436,1726905070545,-500.0,0.00012999,2]
[338742437,1726905070554,-539.76,0.00012999,2]
[338742438,1726905070564,-500.0,0.00012999,2]
[338742439,1726905070573,-500.0,0.00012999,2]
[338742440,1726905070583,-500.0,0.00012999,2]
[338742441,1726905070593,-500.0,0.00012999,2]
[338742442,1726905070602,-500.0,0.00012999,2]
[338742443,1726905070612,-384.88,0.00012999,2]
[338742444,1726905070622,-323.54,0.00012999,2]
[338742445,1726905070632,-500.0,0.00012999,2]
[338742446,1726905070642,-500.0,0.00012999,2]
[338742447,1726905070652,-559.72,0.00012999,2]
[338742448,1726905070661,-500.0,0.00012999,2]
[338742449,1726905070671,-500.0,0.00012999,2]
[338742450,1726905070682,-266.83537047,0.00012999,2]
[338742451,1726905070691,-500.0,0.00012999,2]
[338742452,1726905070701,-500.0,0.00012999,2]
[338742453,1726905070710,-500.0,0.00012999,2]
[338742454,1726905070719,-358.26,0.00012999,2]
[338742455,1726905070729,-500.0,0.00012999,2]
[338742456,1726905070738,-500.0,0.00012999,2]
[338742457,1726905070747,-500.0,0.00012999,2]
[338742458,1726905070757,-547.12,0.00012999,2]
[338742459,1726905070766,-240.68,0.00012999,2]
[338742460,1726905070775,-500.0,0.00012999,2]
[338742461,1726905070785,-341.74,0.00012999,2]
[338742462,1726905070795,-500.0,0.00012999,2]
[338742463,1726905070805,-500.0,0.00012999,2]
[338742464,1726905070814,-500.0,0.00012999,2]
[338742465,1726905070825,-376.35770505,0.00012999,2]
[338742466,1726905070835,-500.0,0.00012999,2]
[338742467,1726905070844,-500.0,0.00012999,2]
[338742468,1726905070854,-500.0,0.00012999,2]
[338742469,1726905070864,-500.0,0.00012999,2]
[338742470,1726905070873,-500.0,0.00012999,2]
[338742471,1726905070883,-500.0,0.00012999,2]
[338742472,1726905070893,-500.0,0.00012999,2]
[338742473,1726905070902,-500.0,0.00012999,2]
[338742474,1726905070912,-500.0,0.00012999,2]
[338742475,1726905070931,-500.0,0.00012999,2]
[338742476,1726905070941,-500.0,0.00012999,2]
[338742477,1726905070951,-500.0,0.00012999,2]
[338742478,1726905070960,-500.0,0.00012999,2]
[338742479,1726905070969,-500.0,0.00012999,2]
[338742480,1726905070980,-500.0,0.00012999,2]
[338742481,1726905070989,-500.0,0.00012999,2]
[338742482,1726905070998,-500.0,0.00012999,2]
[338742483,1726905071007,-500.0,0.00012999,2]
[338742484,1726905071018,-500.0,0.00012999,2]
[338742485,1726905071028,-500.0,0.00012999,2]
[338742486,1726905071037,-500.0,0.00012999,2]
[338742487,1726905071046,-500.0,0.00012999,2]
[338742488,1726905071056,-500.0,0.00012999,2]
[338742489,1726905071065,-500.0,0.00012999,2]
[338742490,1726905071075,-54195.82869762,0.00013,2]
[338742491,1726905072469,-7701.58319048,0.00013,2]
[338742492,1726905072481,-503055.41466143,0.00013,2]
[338742493,1726905072492,-26941.28639219,0.00013,2]
[338742494,1726905072507,-1920.8383185,0.00013,2]
[338742495,1726905072518,-1216.15843688,0.00013,2]
[338742496,1726905072529,-6102.1638032,0.00013,2]
[338742497,1726905072540,-4564.99427688,0.00013,2]
[338742498,1726905072551,-419.77238971,0.00013,2]
[338742499,1726905072562,-1656.58520388,0.00013,2]
[338742500,1726905072573,-9681.60895399,0.00013,2]
[338742501,1726905072584,-2042.81024937,0.00013,2]
[338742502,1726905072596,-1003.50055156,0.00013,2]
[338742503,1726905072607,-1520.54503176,0.00013,2]
[338742504,1726905072618,-1594.44684523,0.00013,2]
[338742505,1726905073072,-135.94268483,0.00013,2]
[338742506,1726905073084,-548.10622179,0.00013,2]
[338742507,1726905073098,-699.78547114,0.00013,2]
[338742508,1726905073109,-1424.0,0.00013,2]
[338742509,1726905073121,-276.91061512,0.00013,2]
[338742510,1726905073134,-9599.89447516,0.00013,2]
[338742511,1726905073149,-6139.93073305,0.00013,2]
[338742512,1726905073160,-1180.22303273,0.00013,2]
[338742513,1726905073174,-4424.51532221,0.00013,2]
[338742514,1726905073187,-607.64675005,0.00013,2]
[338742515,1726905073210,-644.08472678,0.00013,2]
[338742516,1726905073222,-1819.20996264,0.00013,2]
[338742517,1726905073235,-1659.07315969,0.00013,2]
[338742518,1726905073248,-38845.77453441,0.00013,2]
[338742519,1726905073261,-1124.02077438,0.00013,2]
[338742520,1726905073271,-2926.4020911,0.00013,2]
[338742521,1726905073288,-500.0,0.00013,2]
[338742522,1726905073300,-7971.90000001,0.00013,2]
[338742523,1726905073314,-376.955934,0.00013,2]
[338742524,1726905073450,-533.47,0.00012994,2]
[338742525,1726905073461,-500.0,0.00012995,2]
[338742526,1726905073472,-500.0,0.00012997,2]
[338742527,1726905073482,-4713.03973598,0.00013,2]
[338742528,1726905073494,-1249.24702059,0.00013,2]
[338742529,1726905073506,-3169.21683686,0.00013,2]
[338742530,1726905073519,-940.096497,0.00013,2]
[338742531,1726905073539,-312.1858905,0.00013,2]
[338742532,1726905073550,-4169.76988035,0.00013,2]
[338742533,1726905073559,-4000.80678874,0.00013,2]
[338742534,1726905073570,-748.63230573,0.00013,2]
[338742535,1726905073581,-1599.08934919,0.00013,2]
[338742536,1726905073593,-873.04153788,0.00013,2]
[338742537,1726905073606,-985.07438389,0.00013,2]
[338742538,1726905073618,-455.37695136,0.00013,2]
[338742539,1726905073630,-1570.55517767,0.00013,2]
[338742540,1726905073641,-1389.0,0.00013,2]
[338742541,1726905073682,-3664.0000002,0.00013,2]
[338742542,1726905073693,-286.93626806,0.00013,2]
[338742543,1726905073704,-7411.98656928,0.00013,2]
[338742544,1726905073727,-463.29586362,0.00013,2]
[338742545,1726905073739,-485448.54310016,0.00013,2]
[338742546,1726905073750,-831.48450349,0.00013,2]
[338742547,1726905073761,-326.22821978,0.00013,2]
[338742548,1726905073813,-580.59172386,0.00013,2]
[338742549,1726905073824,-276.345,0.00013,2]
[338742550,1726905073835,-1058.70623904,0.00013,2]
[338742551,1726905073847,-3151.08700003,0.00013,2]
[338742552,1726905073859,-1367.99179144,0.00013,2]
[338742553,1726905073872,-313.06330969,0.00013,2]
[338742554,1726905073885,-3885.75977905,0.00013,2]
[338742555,1726905073897,-208501.64233392,0.00013,2]
[338742556,1726905073908,-56522.86545038,0.00013,2]
[338742557,1726905073921,-174057.3795909,0.00013,2]
[338742558,1726905073932,-139801.72843597,0.00013,2]
[338742559,1726905073942,-1000.0,0.00013,2]
[338742560,1726905073955,-156.95509251,0.00013,2]
[338742561,1726905073965,-487.31,0.00013,2]
[338742562,1726905073978,-533.47,0.00013,2]
[338742563,1726905073987,-30184.86568392,0.00013,2]
[338742564,1726905074001,-74231.45971563,0.00013,2]
[338742565,1726905074014,-44851.69624591,0.00013,2]
[338742566,1726905074027,-40637.43076967,0.00013,2]
[338742567,1726905074041,-11537.57862452,0.00013,2]
[338742568,1726905074053,-69964.09856087,0.00013,2]
[338742569,1726905074066,-300.0,0.00013,2]
[338742570,1726905074090,-573.27155235,0.00013,2]
[338742571,1726905074107,-20944.7951398,0.00013,2]
[338742572,1726905091199,1050.0,0.00011,2]
[338742573,1726905160312,250.0,0.00011919,2]
[338742574,1726905168457,800.0,0.00010068,2]
[338742575,1726905170216,800.0,0.00011438,2]
[338742576,1726905221708,157.0,0.00010959,2]
[338742578,1726905228246,186.75,0.00011896,2]
[338742580,1726905331157,335.95,9.938e-05,2]
[338742582,1726905365295,211.69,0.00011849,2]
[338742583,1726905373054,2654.70821171,0.000125,14]
[338742585,1726905506158,1000.0,0.00011821,2]
[338742586,1726905658746,157.55,0.00011918,2]
[338742587,1726905658792,157.55,0.00011923,2]
[338742588,1726905658826,157.55,0.00011927,2]
[338742589,1726905658860,157.55,0.00011932,2]
[338742590,1726905659020,157.55,0.00011937,2]
[338742591,1726905659219,157.55,0.00011941,2]
[338742592,1726905659418,157.55,0.00011946,2]
[338742593,1726905659635,157.55,0.0001195,2]
[338742594,1726905659861,157.55,0.00011955,2]
[338742595,1726905660093,157.55,0.00011959,2]
[338742596,1726905660307,157.55,0.00011964,2]
[338742597,1726905660514,157.55,0.00011969,2]
[338742598,1726905660725,157.55,0.00011973,2]
[338742599,1726905660943,157.55,0.00011978,2]
[338742600,1726905710288,250.0,0.00011827,2]
[338742601,1726905812028,200.0,0.00011821,2]
[338742602,1726905876868,297.97,0.00011828,2]
[338742604,1726905938024,319.15,9.912e-05,2]
[338742606,1726905954244,270.0,0.00010959,2]
[338742608,1726906007808,211.69,0.00011827,2]
[338742609,1726906122884,1000.0,0.00011825,2]
[338742610,1726906213018,800.0,0.00010068,2]
[338742611,1726906214587,800.0,0.00011438,2]
[338742614,1726906232336,-305.85811701,0.00012176,2]
[338742615,1726906232351,-13.29188299,0.00012176,2]
[338742616,1726906232363,-206.37,0.00012416,2]
[338742617,1726906232375,-158.91,0.00012445,2]
[338742618,1726906232387,-358.71811701,0.00012619,2]
[338742619,1726906232402,-141.27188299,0.00012619,2]
[338742620,1726906232415,-1500.0,0.00012731,2]
[338742621,1726906232428,-150.0,0.00012733,2]
[338742622,1726906232440,-150.0,0.00012734,2]
[338742623,1726906232453,-150.0,0.00012739,2]
[338742625,1726906233349,-150.0,0.00012741,2]
[338742626,1726906233382,-150.0,0.00012741,2]
[338742627,1726906233406,-323.83,0.00012741,2]
[338742628,1726906233418,-150.0,0.00012742,2]
[338742629,1726906233428,-150.0,0.00012753,2]
[338742630,1726906233438,-150.0,0.00012755,2]
[338742631,1726906233447,-1500.0,0.00012756,2]
[338742632,1726906233457,-150.0,0.00012756,2]
[338742633,1726906233467,-150.0,0.00012759,2]
[338742634,1726906233477,-150.0,0.00012761,2]
[338742635,1726906233487,-150.0,0.00012762,2]
[338742636,1726906233496,-150.0,0.00012763,2]
[338742637,1726906233506,-150.0,0.00012764,2]
[338742638,1726906233516,-150.0,0.00012765,2]
[338742639,1726906233525,-150.0,0.00012767,2]
[338742640,1726906233534,-1500.0,0.00012768,2]
[338742641,1726906233544,-150.0,0.0001277,2]
[338742642,1726906233553,-150.0,0.00012777,2]
[338742643,1726906233563,-150.0,0.00012781,2]
[338742644,1726906233572,-150.0,0.00012781,2]
[338742645,1726906233582,-150.0,0.00012786,2]
[338742646,1726906233591,-150.0,0.00012787,2]
[338742647,1726906233601,-1500.0,0.00012788,2]
[338742648,1726906233611,-2820.7403,0.00012796,2]
[338742649,1726906233620,-181.884,0.00012796,2]
[338742650,1726906233632,-150.0,0.00012797,2]
[338742651,1726906233644,-15205.65962762,0.00012799,2]
[338742652,1726906233654,-150.0,0.00012804,2]
[338742653,1726906233672,-421.94785814,0.00012808,2]
[338742654,1726906233682,-800.0,0.00012808,2]
[338742655,1726906233692,-1500.0,0.00012813,2]
[338742656,1726906233701,-1500.0,0.00012815,2]
[338742657,1726906233710,-150.0,0.00012817,2]
[338742658,1726906233721,-150.0,0.00012818,2]
[338742659,1726906233730,-150.0,0.00012823,2]
[338742660,1726906233740,-150.0,0.00012827,2]
[338742661,1726906233750,-1500.0,0.00012829,2]
[338742662,1726906233759,-150.0,0.00012834,2]
[338742663,1726906233769,-150.0,0.00012835,2]
[338742664,1726906233778,-150.0,0.00012838,2]
[338742665,1726906233788,-576.18562701,0.0001284,2]
[338742666,1726906233797,-150.0,0.00012846,2]
[338742667,1726906233807,-150.0,0.0001285,2]
[338742668,1726906233817,-150.0,0.00012851,2]
[338742669,1726906233827,-150.0,0.00012851,2]
[338742670,1726906233837,-1500.0,0.00012852,2]
[338742671,1726906233846,-150.0,0.00012852,2]
[338742672,1726906233856,-150.0,0.00012853,2]
[338742673,1726906233865,-150.0,0.00012856,2]
[338742674,1726906233875,-1500.0,0.00012857,2]
[338742675,1726906233885,-291.23320283,0.00012861,2]
[338742676,1726906233894,-150.0,0.00012863,2]
[338742677,1726906233905,-1500.0,0.00012864,2]
[338742678,1726906233914,-150.0,0.00012865,2]
[338742679,1726906233924,-150.0,0.00012865,2]
[338742680,1726906233933,-150.0,0.00012868,2]
[338742681,1726906233943,-150.0,0.0001287,2]
[338742682,1726906233953,-150.0,0.0001287,2]
[338742683,1726906233963,-150.0,0.00012872,2]
[338742684,1726906233972,-150.0,0.00012877,2]
[338742685,1726906233982,-150.0,0.00012884,2]
[338742686,1726906233992,-14576.47248075,0.00012885,2]
[338742687,1726906234003,-150.0,0.0001289,2]
[338742688,1726906234012,-151.75,0.0001289,2]
[338742689,1726906234022,-150.0,0.00012892,2]
[338742690,1726906234032,-1658.7,0.00012893,2]
[338742691,1726906234041,-1254.0,0.00012895,2]
[338742692,1726906234051,-538.09,0.00012895,2]
[338742693,1726906234060,-500.0,0.00012895,2]
[338742694,1726906234069,-500.0,0.00012895,2]
[338742695,1726906234079,-500.0,0.00012895,2]
[338742696,1726906234088,-500.0,0.00012895,2]
[338742697,1726906234097,-500.0,0.00012895,2]
[338742698,1726906234107,-500.0,0.00012895,2]
[338742699,1726906234116,-500.0,0.00012895,2]
[338742700,1726906234125,-500.0,0.00012895,2]
[338742701,1726906234134,-500.0,0.00012895,2]
[338742702,1726906234144,-547.42,0.00012895,2]
[338742703,1726906234153,-500.0,0.00012895,2]
[338742704,1726906234162,-500.0,0.00012895,2]
[338742705,1726906234172,-631.07,0.00012895,2]
[338742706,1726906234182,-500.0,0.00012895,2]
[338742707,1726906234191,-500.0,0.00012895,2]
[338742708,1726906234200,-500.0,0.00012895,2]
[338742709,1726906234210,-500.0,0.00012895,2]
[338742710,1726906234220,-500.0,0.00012895,2]
[338742711,1726906234229,-924.78,0.00012895,2]
[338742712,1726906234239,-500.0,0.00012895,2]
[338742713,1726906234248,-700.65,0.00012895,2]
[338742714,1726906234258,-500.0,0.00012895,2]
[338742715,1726906234268,-500.0,0.00012895,2]
[338742716,1726906234277,-500.0,0.00012895,2]
[338742717,1726906234287,-500.0,0.00012895,2]
[338742718,1726906234297,-500.0,0.00012895,2]
[338742719,1726906234306,-500.0,0.00012895,2]
[338742720,1726906234315,-500.0,0.00012895,2]
[338742721,1726906234324,-534.73,0.00012895,2]
[338742722,1726906234334,-500.0,0.00012895,2]
[338742723,1726906234344,-502.74,0.00012895,2]
[338742724,1726906234353,-500.0,0.00012895,2]
[338742725,1726906234362,-500.0,0.00012895,2]
[338742726,1726906234372,-568.11,0.00012895,2]
[338742727,1726906234381,-500.0,0.00012895,2]
[338742728,1726906234390,-500.0,0.00012895,2]
[338742729,1726906234400,-500.0,0.00012895,2]
[338742730,1726906234410,-500.0,0.00012895,2]
[338742731,1726906234420,-500.0,0.00012895,2]
[338742732,1726906234429,-500.0,0.00012895,2]
[338742733,1726906234438,-3897.676,0.00012895,2]
[338742734,1726906234448,-1500.0,0.00012897,2]
[338742735,1726906234457,-1337.93,0.00012899,2]
[338742736,1726906234466,-500.0,0.00012899,2]
[338742737,1726906234475,-494.43554212,0.00012899,2]
[338742738,1726906234485,-586.57,0.00012899,2]
[338742739,1726906234494,-500.0,0.00012899,2]
[338742740,1726906234504,-500.0,0.00012899,2]
[338742741,1726906234513,-500.0,0.00012899,2]
[338742742,1726906234523,-500.0,0.00012899,2]
[338742743,1726906234533,-500.0,0.00012899,2]
[338742744,1726906234543,-500.0,0.00012899,2]
[338742745,1726906234552,-761.09,0.00012899,2]
[338742746,1726906234562,-500.0,0.00012899,2]
[338742747,1726906234571,-628.11,0.00012899,2]
[338742748,1726906234581,-500.0,0.00012899,2]
[338742749,1726906234591,-500.0,0.00012899,2]
[338742750,1726906234601,-584.37,0.00012899,2]
[338742751,1726906234610,-500.0,0.00012899,2]
[338742752,1726906234619,-412.49277962,0.00012899,2]
[338742753,1726906234628,-500.0,0.00012899,2]
[338742754,1726906234638,-921.94,0.00012899,2]
[338742755,1726906234647,-500.0,0.00012899,2]
[338742756,1726906234657,-500.0,0.00012899,2]
[338742757,1726906234667,-500.0,0.00012899,2]
[338742758,1726906234676,-895.72,0.00012899,2]
[338742759,1726906234686,-500.0,0.00012899,2]
[338742760,1726906234695,-500.0,0.00012899,2]
[338742761,1726906234705,-653.54,0.00012899,2]
[338742762,1726906234714,-500.0,0.00012899,2]
[338742763,1726906234723,-500.0,0.00012899,2]
[338742764,1726906234732,-910.29,0.00012899,2]
[338742765,1726906234742,-500.0,0.00012899,2]
[338742766,1726906234752,-500.0,0.00012899,2]
[338742767,1726906234761,-500.0,0.00012899,2]
[338742768,1726906234771,-517.64,0.00012899,2]
[338742769,1726906234780,-610.73,0.00012899,2]
[338742770,1726906234789,-500.0,0.00012899,2]
[338742771,1726906234799,-500.0,0.00012899,2]
[338742772,1726906234808,-500.0,0.00012899,2]
[338742773,1726906234818,-500.0,0.00012899,2]
[338742774,1726906234827,-500.0,0.00012899,2]
[338742775,1726906234837,-500.0,0.00012899,2]
[338742776,1726906234846,-500.0,0.00012899,2]
[338742777,1726906234856,-903.63,0.00012899,2]
[338742778,1726906234865,-500.0,0.00012899,2]
[338742779,1726906234875,-614.44,0.00012899,2]
[338742780,1726906234885,-514.5,0.00012899,2]
[338742781,1726906234894,-500.0,0.00012899,2]
[338742782,1726906234904,-500.0,0.00012899,2]
[338742783,1726906234914,-500.0,0.00012899,2]
[338742784,1726906234924,-500.0,0.00012899,2]
[338742785,1726906234934,-500.0,0.00012899,2]
[338742786,1726906234944,-500.0,0.00012899,2]
[338742787,1726906234953,-500.0,0.00012899,2]
[338742788,1726906234963,-500.0,0.00012899,2]
[338742789,1726906234972,-500.0,0.00012899,2]
[338742790,1726906234982,-500.0,0.00012899,2]
[338742791,1726906234994,-500.0,0.00012899,2]
[338742792,1726906235004,-500.0,0.00012899,2]
[338742793,1726906235014,-504.44,0.00012899,2]
[338742794,1726906235023,-561.64,0.00012899,2]
[338742795,1726906235033,-500.0,0.00012899,2]
[338742796,1726906235043,-500.0,0.00012899,2]
[338742797,1726906235052,-500.0,0.00012899,2]
[338742798,1726906235062,-500.0,0.00012899,2]
[338742799,1726906235072,-500.0,0.00012899,2]
[338742800,1726906235081,-500.0,0.00012899,2]
[338742801,1726906235091,-500.0,0.00012899,2]
[338742802,1726906235100,-500.0,0.00012899,2]
[338742803,1726906235109,-500.0,0.00012899,2]
[338742804,1726906235118,-500.0,0.00012899,2]
[338742805,1726906235128,-500.0,0.00012899,2]
[338742806,1726906235137,-500.0,0.00012899,2]
[338742807,1726906235147,-500.0,0.00012899,2]
[338742808,1726906235156,-774.14,0.00012899,2]
[338742809,1726906235165,-500.0,0.00012899,2]
[338742810,1726906235175,-500.0,0.00012899,2]
[338742811,1726906235184,-500.0,0.00012899,2]
[338742812,1726906235193,-557.76,0.00012899,2]
[338742813,1726906235202,-500.0,0.00012899,2]
[338742814,1726906235212,-639.22,0.00012899,2]
[338742815,1726906235221,-500.0,0.00012899,2]
[338742816,1726906235231,-500.0,0.00012899,2]
[338742817,1726906235240,-500.0,0.00012899,2]
[338742818,1726906235249,-500.0,0.00012899,2]
[338742819,1726906235258,-500.0,0.00012899,2]
[338742820,1726906235268,-545.89,0.00012899,2]
[338742821,1726906235277,-500.0,0.00012899,2]
[338742822,1726906235286,-500.0,0.00012899,2]
[338742823,1726906235296,-500.0,0.00012899,2]
[338742824,1726906235305,-500.0,0.00012899,2]
[338742825,1726906235314,-500.0,0.00012899,2]
[338742826,1726906235324,-500.0,0.00012899,2]
[338742827,1726906235334,-500.0,0.00012899,2]
[338742828,1726906235343,-500.0,0.00012899,2]
[338742829,1726906235352,-500.0,0.00012899,2]
[338742830,1726906235362,-180.4819518,0.00012899,2]
[338742831,1726906235371,-500.0,0.00012899,2]
[338742832,1726906235381,-238.46029489,0.00012899,2]
[338742833,1726906235390,-500.0,0.00012899,2]
[338742834,1726906235400,-500.0,0.00012899,2]
[338742835,1726906235410,-599.18,0.00012899,2]
[338742836,1726906235419,-344.95820962,0.00012899,2]
[338742837,1726906235429,-519.0,0.00012899,2]
[338742838,1726906235439,-500.0,0.00012899,2]
[338742839,1726906235448,-500.0,0.00012899,2]
[338742840,1726906235457,-500.0,0.00012899,2]
[338742841,1726906235467,-500.0,0.00012899,2]
[338742842,1726906235476,-500.0,0.00012899,2]
[338742843,1726906235486,-500.0,0.00012899,2]
[338742844,1726906235495,-500.0,0.00012899,2]
[338742845,1726906235504,-500.0,0.00012899,2]
[338742846,1726906235514,-500.0,0.00012899,2]
[338742847,1726906235523,-500.0,0.00012899,2]
[338742848,1726906235534,-628.39,0.00012899,2]
[338742849,1726906235543,-500.0,0.00012899,2]
[338742850,1726906235553,-500.0,0.00012899,2]
[338742851,1726906235562,-500.0,0.00012899,2]
[338742852,1726906235572,-500.0,0.00012899,2]
[338742853,1726906235581,-500.0,0.00012899,2]
[338742854,1726906235591,-500.0,0.00012899,2]
[338742855,1726906235601,-619.95,0.00012899,2]
[338742856,1726906235610,-500.0,0.00012899,2]
[338742857,1726906235620,-500.0,0.00012899,2]
[338742858,1726906235630,-646.79170323,0.00012899,2]
[338742859,1726906235640,-500.0,0.00012899,2]
[338742860,1726906235653,-500.0,0.00012899,2]
[338742861,1726906235663,-500.0,0.00012899,2]
[338742862,1726906235673,-500.0,0.00012899,2]
[338742863,1726906235683,-500.0,0.00012899,2]
[338742864,1726906235693,-500.0,0.00012899,2]
[338742865,1726906235703,-500.0,0.00012899,2]
[338742866,1726906235713,-500.0,0.00012899,2]
[338742867,1726906235723,-500.0,0.00012899,2]
[338742868,1726906235733,-500.0,0.00012899,2]
[338742869,1726906235743,-500.0,0.00012899,2]
[338742870,1726906235752,-500.0,0.00012899,2]
[338742871,1726906235762,-500.0,0.00012899,2]
[338742872,1726906235771,-500.0,0.00012899,2]
[338742873,1726906235782,-500.0,0.00012899,2]
[338742874,1726906235792,-500.0,0.00012899,2]
[338742875,1726906235801,-500.0,0.00012899,2]
[338742876,1726906235811,-500.0,0.00012899,2]
[338742877,1726906235821,-321.10723099,0.00012899,2]
[338742878,1726906235830,-500.0,0.00012899,2]
[338742879,1726906235840,-500.0,0.00012899,2]
[338742880,1726906235849,-500.0,0.00012899,2]
[338742881,1726906235859,-500.0,0.00012899,2]
[338742882,1726906235868,-500.0,0.00012899,2]
[338742883,1726906235878,-500.0,0.00012899,2]
[338742884,1726906235887,-643.3,0.00012899,2]
[338742885,1726906235897,-500.0,0.00012899,2]
[338742886,1726906235906,-500.0,0.00012899,2]
[338742887,1726906235916,-500.0,0.00012899,2]
[338742888,1726906235926,-500.0,0.00012899,2]
[338742889,1726906235936,-500.0,0.00012899,2]
[338742890,1726906235945,-582.2,0.00012899,2]
[338742891,1726906235955,-500.0,0.00012899,2]
[338742892,1726906235965,-500.0,0.00012899,2]
[338742893,1726906235975,-500.0,0.00012899,2]
[338742894,1726906235984,-500.0,0.00012899,2]
[338742895,1726906235994,-565.94,0.00012899,2]
[338742896,1726906236004,-500.0,0.00012899,2]
[338742897,1726906236013,-539.18,0.00012899,2]
[338742898,1726906236023,-500.0,0.00012899,2]
[338742899,1726906236033,-500.0,0.00012899,2]
[338742900,1726906236042,-500.0,0.00012899,2]
[338742901,1726906236052,-500.0,0.00012899,2]
[338742902,1726906236061,-500.0,0.00012899,2]
[338742903,1726906236071,-500.0,0.00012899,2]
[338742904,1726906236080,-500.0,0.00012899,2]
[338742905,1726906236089,-500.0,0.00012899,2]
[338742906,1726906236099,-500.0,0.00012899,2]
[338742907,1726906236109,-539.85,0.00012899,2]
[338742908,1726906236118,-500.0,0.00012899,2]
[338742909,1726906236128,-500.0,0.00012899,2]
[338742910,1726906236138,-544.0,0.00012899,2]
[338742911,1726906236147,-500.0,0.00012899,2]
[338742912,1726906236157,-500.0,0.00012899,2]
[338742913,1726906236166,-500.0,0.00012899,2]
[338742914,1726906236175,-500.0,0.00012899,2]
[338742915,1726906236185,-545.57,0.00012899,2]
[338742916,1726906236194,-500.0,0.00012899,2]
[338742917,1726906236203,-500.0,0.00012899,2]
[338742918,1726906236212,-638.34,0.00012899,2]
[338742919,1726906236221,-500.0,0.00012899,2]
[338742920,1726906236231,-500.0,0.00012899,2]
[338742921,1726906236241,-246.91894113,0.00012899,2]
[338742922,1726906236250,-500.0,0.00012899,2]
[338742923,1726906236261,-500.0,0.00012899,2]
[338742924,1726906236270,-503.9,0.00012899,2]
[338742925,1726906236280,-500.0,0.00012899,2]
[338742926,1726906236289,-500.0,0.00012899,2]
[338742927,1726906236299,-601.68403665,0.00012899,2]
[338742928,1726906236308,-500.0,0.00012899,2]
[338742929,1726906236318,-500.0,0.00012899,2]
[338742930,1726906236327,-500.0,0.00012899,2]
[338742931,1726906236337,-500.0,0.00012899,2]